bitfinex-derivatives/quotes_ETHF0:USTF0_20251216
["timestamp","ask_amount","ask_price","bid_price","bid_amount"]
[1765856012640,3.2078,2925.6,2924.8,3.2078]
[1765856012841,3.2078,2925.3,2925.2,3.2078]
[1765856013042,3.2078,2925.3,2924.8,44.0078]
[1765856013238,3.2078,2925.3,2925.2,3.2078]
[1765856013735,3.2078,2926.3,2925.3,1.5781]
[1765856013939,0.00512653,2926.4,2925.3,1.5781]
[1765856013940,0.00512653,2926.4,2925.7,3.2078]
[1765856014141,3.2078,2926.3,2925.4,4.46690532]
[1765856014335,4.8838,2926.0,2925.3,3.2078]
[1765856014647,3.2078,2925.6,2924.4,3.21095801]
[1765856014835,3.2078,2925.1,2924.6,0.18]
[1765856015038,3.2078,2925.1,2924.4,3.21095801]
[1765856015234,3.2078,2925.1,2924.4,3.28095801]
[1765856015440,3.2078,2925.1,2924.4,3.21095801]
[1765856015640,3.2078,2925.4,2924.7,3.2078]
[1765856016452,3.2078,2925.4,2924.6,42.3781]
[1765856017142,3.2078,2925.4,2924.6,1.5781]
[1765856017449,3.2078,2925.1,2924.6,1.5781]
[1765856018244,3.21292653,2926.4,2925.0,3.2078]
[1765856018453,1.676,2926.0,2925.2,3.2078]
[1765856018746,1.676,2925.3,2925.2,0.19]
[1765856019049,1.676,2925.3,2924.4,3.21095801]
[1765856019251,3.2078,2925.5,2924.5,3.2078]
[1765856020543,3.2078,2925.5,2924.6,1.5781]
[1765856020744,3.2078,2925.5,2924.6,4.4181]
[1765856020939,3.2078,2925.5,2924.9,3.2078]
[1765856022345,0.17096,2925.2,2924.9,3.2078]
[1765856022548,1.676,2924.6,2924.4,3.21095801]
[1765856022852,0.17102,2924.3,2923.9,0.18761446]
[1765856023147,3.2078,2924.5,2923.5,0.55846301]
[1765856023342,3.2078,2924.5,2923.9,3.2078]
[1765856023543,3.2078,2924.5,2923.9,5.8978]
[1765856023750,3.2078,2924.5,2923.9,5.90165686]
[1765856023960,3.2078,2924.5,2923.9,5.80165686]
[1765856024552,0.00390683,2924.6,2924.0,16.25]
[1765856024747,0.00390683,2924.6,2924.1,2.31527271]
[1765856024948,0.00390683,2924.6,2924.4,4.1927]
[1765856025151,0.00390683,2924.6,2924.0,3.2078]
[1765856025545,3.2078,2924.2,2923.9,0.00385686]
[1765856027668,11.52307271,2924.2,2922.9,44.0078]
[1765856027959,3.2078,2923.0,2922.0,3.2078]
[1765856028149,3.2078,2922.6,2922.0,2.77]
[1765856028457,3.2078,2922.6,2922.0,43.57]
[1765856028652,3.2078,2923.5,2922.5,4.7859]
[1765856028847,3.2078,2923.6,2922.9,3.2078]
[1765856029047,3.2078,2923.6,2922.6,16.26]
[1765856029048,3.2078,2923.6,2922.6,7.6689043]
[1765856029251,3.2078,2923.6,2922.6,2.73]
[1765856029453,3.2078,2923.6,2922.8,3.2078]
[1765856029663,0.00512653,2923.5,2922.9,0.00512653]
[1765856031061,3.2078,2923.3,2922.9,0.00512653]
[1765856032655,1.676,2923.2,2922.9,0.00512653]
[1765856033156,8.4868,2923.0,2922.9,0.00512653]
[1765856034658,3.2078,2923.0,2922.9,0.00512653]
[1765856034849,3.2078,2923.0,2922.9,5.27442653]
[1765856035054,0.00512653,2923.5,2922.9,5.27442653]
[1765856035256,3.2078,2923.4,2923.3,2.4354]
[1765856035463,3.2078,2923.4,2922.9,0.00512653]
[1765856036262,0.96917711,2923.3,2922.9,0.00512653]
[1765856036456,0.96917711,2923.2,2922.9,0.00512653]
[1765856036656,3.2078,2923.4,2922.9,0.00512653]
[1765856036857,0.97695381,2923.3,2922.9,0.00512653]
[1765856037161,0.97695381,2923.2,2922.9,0.00512653]
[1765856037352,5.279,2923.0,2922.9,0.00512653]
[1765856037551,8.05633021,2923.0,2922.9,0.00512653]
[1765856037957,6.25595381,2923.0,2922.9,0.00512653]
[1765856038260,6.25595381,2923.0,2922.9,2.653e-05]
[1765856038956,5.26567623,2923.0,2922.9,2.653e-05]
[1765856039462,0.97695381,2923.0,2922.9,5.26932653]
[1765856039660,2.76487623,2923.0,2922.9,2.653e-05]
[1765856039859,2.7658812,2923.0,2922.9,2.653e-05]
[1765856040260,0.97695381,2923.0,2922.9,2.653e-05]
[1765856040663,2.76523883,2923.0,2922.9,2.653e-05]
[1765856040858,0.97695381,2923.0,2922.9,2.653e-05]
[1765856041259,0.97695381,2923.0,2922.9,5.26932653]
[1765856041561,4.99608502,2923.4,2923.3,5.2693]
[1765856041858,3.37887,2923.4,2922.9,2.653e-05]
[1765856042061,10.42822897,2923.0,2922.9,2.653e-05]
[1765856042370,1.78942471,2923.2,2923.0,2.8861]
[1765856042562,3.2078,2923.3,2923.2,5.934]
[1765856043063,2.88458061,2923.3,2923.2,5.934]
[1765856043368,0.00512653,2923.5,2923.2,5.934]
[1765856043572,0.00512653,2923.5,2923.4,2.8861]
[1765856044765,0.00512653,2923.5,2923.4,5.934]
[1765856045966,0.00512653,2923.5,2923.4,11.934]
[1765856046168,4.99722471,2923.9,2923.8,5.934]
[1765856046762,3.2078,2923.9,2923.8,5.934]
[1765856046963,4.99722471,2924.2,2924.1,5.934]
[1765856047169,4.99722471,2924.2,2924.1,5.93742577]
[1765856047364,3.2078,2924.2,2924.1,5.93742577]
[1765856047567,0.00512653,2924.4,2924.3,5.934]
[1765856048170,0.00512653,2924.4,2924.3,11.934]
[1765856048467,0.00512653,2924.4,2924.3,5.934]
[1765856048672,0.00512653,2924.4,2924.3,8.404]
[1765856049268,0.00390683,2924.6,2924.5,5.934]
[1765856049571,3.2078,2925.4,2925.3,5.934]
[1765856049768,4.99722471,2925.4,2924.5,4.53844362]
[1765856049964,3.2078,2925.0,2924.5,1.28]
[1765856050170,3.21292653,2925.0,2924.5,1.28512653]
[1765856050363,3.21543038,2925.0,2924.5,1.28512653]
[1765856050570,3.21543038,2925.0,2924.9,2.8861]
[1765856050770,3.21543038,2925.0,2924.9,5.934]
[1765856051767,0.00763038,2925.0,2924.9,8.224]
[1765856051969,3.2078,2925.3,2924.9,14.224]
[1765856052171,3.2078,2925.3,2925.2,5.934]
[1765856052569,1.78942471,2925.8,2925.7,2.8861]
[1765856052772,1.78942471,2925.9,2925.2,3.2078]
[1765856052970,0.00512653,2925.8,2925.2,3.2078]
[1765856053168,3.2078,2925.3,2924.8,3.683]
[1765856053369,5.083,2925.6,2925.2,2.8861]
[1765856053673,0.94344877,2925.5,2925.2,6.0939]
[1765856053869,0.94338374,2925.4,2925.0,3.2078]
[1765856054071,0.94338374,2925.3,2925.2,5.934]
[1765856054370,0.94338374,2925.3,2925.2,9.1418]
[1765856054776,0.00512653,2925.8,2925.2,9.1418]
[1765856055070,0.94279025,2925.7,2925.6,5.934]
[1765856055278,0.94279025,2925.7,2925.6,10.4864]
[1765856055471,0.00512653,2925.8,2925.7,5.934]
[1765856055672,0.94752105,2925.8,2925.7,5.934]
[1765856056371,0.94669943,2925.8,2925.7,5.934]
[1765856056870,0.00512653,2925.8,2925.7,5.934]
[1765856057274,1.78942471,2926.7,2926.4,5.934]
[1765856057473,3.2078,2926.5,2925.7,7.56039578]
[1765856057771,3.2078,2926.7,2926.3,5.934]
[1765856057976,3.2078,2927.3,2927.2,2.8861]
[1765856058273,3.21037527,2927.3,2927.2,5.93777341]
[1765856058472,0.00257527,2927.3,2927.2,5.93777341]
[1765856059073,0.00512653,2927.5,2927.4,5.934]
[1765856059278,0.00512653,2927.5,2927.4,8.744]
[1765856059476,1.8752,2928.6,2927.4,19.3985035]
[1765856059779,3.2078,2929.0,2928.2,2.31471979]
[1765856059982,3.2078,2929.0,2928.6,2.31471979]
[1765856060182,0.00274822,2929.0,2928.6,4.92471979]
[1765856060578,0.00274822,2929.0,2928.7,16.287]
[1765856060771,0.00274822,2929.0,2928.7,23.16681684]
[1765856061584,4.822e-05,2929.0,2928.9,3.2078]
[1765856061879,4.822e-05,2929.0,2928.9,26.31350744]
[1765856062273,3.2078,2929.6,2928.9,32.31350744]
[1765856062468,3.2078,2929.6,2929.2,2.31471979]
[1765856062672,3.2078,2929.6,2928.9,10.03550744]
[1765856062673,3.2078,2929.6,2929.3,16.276]
[1765856063576,3.21066514,2929.6,2929.3,16.28008463]
[1765856063880,3.21066514,2929.6,2929.4,16.269]
[1765856064275,0.00286514,2929.6,2929.5,7.6797473]
[1765856064575,0.00286514,2929.6,2929.3,0.00408463]
[1765856064776,0.00286514,2929.6,2929.5,16.268]
[1765856065680,0.00286514,2929.6,2929.5,22.202]
[1765856065982,3.21066514,2929.6,2929.4,16.262]
[1765856066287,3.21066514,2929.6,2929.4,16.264]
[1765856066986,3.21066514,2929.6,2929.5,2.8861]
[1765856067187,3.21066514,2929.6,2929.5,5.934]
[1765856067576,0.00286514,2929.6,2929.5,10.96871979]
[1765856067779,0.00286514,2929.6,2929.5,8.24871979]
[1765856067974,0.00286514,2929.6,2929.5,24.50471979]
[1765856068578,0.00286514,2929.6,2929.5,11.45651979]
[1765856068779,0.00333244,2929.7,2929.6,5.934]
[1765856069884,0.0064745,2929.7,2929.6,5.934]
[1765856070579,0.0064745,2929.7,2929.6,8.564]
[1765856071878,3.2078,2930.7,2930.6,2.8165]
[1765856072076,3.2078,2930.7,2930.6,5.5591]
[1765856072380,3.2078,2931.0,2930.9,2.8165]
[1765856072784,5.5331,2930.8,2930.7,0.00512653]
[1765856072983,4.85088196,2931.0,2930.7,0.00512653]
[1765856073793,5.5331,2930.8,2930.7,0.00512653]
[1765856074381,4.85088196,2931.0,2930.7,0.00512653]
[1765856074587,3.21108196,2931.0,2930.9,2.893]
[1765856075485,5.5331,2930.8,2930.7,0.00512653]
[1765856075687,5.5331,2930.8,2930.7,1e-08]
[1765856075886,11.5331,2930.8,2930.7,1e-08]
[1765856077092,5.5331,2930.8,2930.7,1e-08]
[1765856078493,2.6649,2930.8,2930.7,1e-08]
[1765856078693,5.5331,2930.8,2930.7,1e-08]
[1765856080388,5.5331,2930.8,2929.7,3.2078]
[1765856080389,11.5331,2930.8,2929.7,3.2078]
[1765856080587,1.64820848,2931.0,2929.7,10.62851979]
[1765856080792,4.85600848,2931.0,2930.6,2.2332]
[1765856080998,1.64820848,2931.0,2930.9,2.2332]
[1765856082388,1.64820848,2931.0,2930.9,4.4664]
[1765856082585,0.00840848,2931.0,2930.9,4.4664]
[1765856082787,1.6398,2931.0,2930.9,12.55431091]
[1765856082994,1.8752,2931.6,2930.9,21.04151979]
[1765856083293,1.8752,2931.6,2931.5,2.687]
[1765856083487,5.083,2932.2,2931.5,8.5532]
[1765856083996,5.08703699,2932.2,2931.5,8.55643447]
[1765856084588,5.08703699,2932.2,2931.5,5.89803447]
[1765856084794,1.6398,2931.6,2931.5,3.21103447]
[1765856085295,1.6398,2931.6,2931.5,5.83963447]
[1765856085594,1.6398,2931.6,2931.5,8.46823447]
[1765856085794,0.91860666,2932.1,2931.5,8.46823447]
[1765856085991,5.08703699,2932.2,2931.5,3.21103447]
[1765856086187,0.91860666,2932.1,2931.6,16.226]
[1765856086392,1.6398,2931.6,2931.5,19.43603447]
[1765856086797,0.92342676,2932.1,2931.5,24.60423447]
[1765856087097,0.92342676,2932.0,2931.5,24.60423447]
[1765856087294,0.92342676,2931.9,2931.6,16.224]
[1765856087499,0.92342676,2931.8,2931.6,16.224]
[1765856087798,1.87923699,2932.2,2931.6,16.224]
[1765856087998,0.92540781,2932.1,2931.6,16.224]
[1765856088195,1.87923699,2932.2,2931.6,16.224]
[1765856088196,0.92540781,2932.0,2931.6,16.224]
[1765856088395,0.92540781,2931.9,2931.8,8.2578]
[1765856088695,4.8476,2932.8,2932.7,2.5103]
[1765856088997,0.92676393,2932.8,2932.7,5.0206]
[1765856089202,3.2078,2933.1,2933.0,2.5103]
[1765856089404,1.6398,2933.4,2933.3,2.4816]
[1765856089598,2.55972443,2933.4,2933.3,2.4816]
[1765856089800,2.56233619,2933.4,2933.3,2.4816]
[1765856090001,0.92253619,2933.4,2933.3,4.9632]
[1765856090192,0.00261176,2933.4,2933.3,10.831]
[1765856090397,1.176e-05,2933.4,2933.3,21.28487613]
[1765856091096,0.91925071,2934.5,2934.4,2.4498]
[1765856091504,1.6398,2934.6,2934.4,4.8996]
[1765856091803,1.6398,2934.6,2934.5,2.4211]
[1765856092001,1.64234901,2934.6,2934.5,2.42460914]
[1765856092201,1.64234901,2934.6,2934.5,4.84570914]
[1765856092202,0.00254901,2934.6,2934.5,4.84570914]
[1765856092400,0.00254901,2934.6,2934.5,0.00350914]
[1765856092608,0.00254901,2934.6,2934.5,16.21950914]
[1765856094592,4.901e-05,2934.6,2934.5,16.21950914]
[1765856094792,4.901e-05,2934.6,2934.5,26.57518579]
[1765856094997,3.2078,2936.2,2934.5,10.35918579]
[1765856095198,4.8476,2935.8,2935.0,3.2078]
[1765856095403,1.6398,2935.8,2935.3,3.2078]
[1765856095598,1.6398,2935.8,2935.4,13.498]
[1765856095902,1.64290789,2935.8,2935.7,2.3317]
[1765856096803,0.00310789,2935.8,2935.7,14.02426061]
[1765856097103,3.2078,2936.7,2935.7,15.38916061]
[1765856097308,1.6398,2937.0,2936.4,3.2078]
[1765856097606,1.6398,2937.0,2936.5,16.098]
[1765856098106,0.00430836,2937.0,2936.7,2.61089241]
[1765856098403,0.00430836,2937.0,2936.8,4.39126939]
[1765856098603,0.00430836,2937.0,2936.8,6.68126939]
[1765856098795,8.36e-06,2937.0,2936.8,6.68126939]
[1765856099903,8.36e-06,2937.0,2936.9,16.199]
[1765856100098,8.36e-06,2937.0,2936.9,18.719]
[1765856100303,8.36e-06,2937.0,2936.9,23.08095296]
[1765856100498,8.36e-06,2937.0,2936.9,4.36195296]
[1765856100700,8.36e-06,2937.0,2936.9,23.15095296]
[1765856100905,8.36e-06,2937.0,2936.9,18.789]
[1765856101103,8.36e-06,2937.0,2936.9,29.24328511]
[1765856101308,1.6398,2938.2,2936.9,29.24328511]
[1765856101605,1.6398,2938.2,2937.9,3.2078]
[1765856101802,1.6398,2938.2,2938.0,14.65]
[1765856102316,0.00256519,2938.2,2938.0,17.45]
[1765856102503,0.00256519,2938.2,2938.1,4.46729036]
[1765856102703,3.2078,2938.9,2938.1,4.46729036]
[1765856102908,3.2078,2938.9,2938.2,3.2078]
[1765856103108,1.5186,2938.2,2937.8,44.01290838]
[1765856103303,1.5186,2938.2,2938.1,3.2078]
[1765856103506,1.5186,2938.2,2937.8,56.99710838]
[1765856103507,1.5186,2938.2,2937.8,60.20490838]
[1765856103805,1.52218436,2938.2,2937.8,60.20490838]
[1765856104004,1.52218436,2938.2,2937.8,19.40190838]
[1765856104201,1.52218436,2938.2,2938.1,3.2078]
[1765856104710,1.52218436,2938.2,2937.8,40.80510838]
[1765856104904,1.52218436,2938.2,2937.8,0.00510838]
[1765856105109,9.2078,2938.1,2937.3,3.2078]
[1765856105307,1.5186,2937.2,2937.0,3.2078]
[1765856105508,4.72998436,2938.2,2937.1,3.2078]
[1765856105715,4.72998436,2938.2,2937.4,3.2078]
[1765856105914,4.72998436,2938.2,2937.5,16.196]
[1765856106206,0.00358436,2938.2,2937.9,3.2078]
[1765856106416,0.00358436,2938.2,2937.9,5.6878]
[1765856106615,1.6398,2938.8,2938.0,4.49470244]
[1765856106817,1.6398,2938.8,2938.3,3.2078]
[1765856107109,1.6398,2938.8,2938.4,16.194]
[1765856107514,1.64395979,2938.8,2938.4,16.194]
[1765856107909,0.00415979,2938.8,2938.5,4.45471056]
[1765856108415,0.00415979,2938.8,2938.7,3.2078]
[1765856108813,3.2078,2939.7,2938.7,10.14877559]
[1765856109007,3.2078,2939.4,2938.7,7.53788318]
[1765856109207,3.2078,2939.4,2938.5,3.2078]
[1765856109418,3.2078,2939.4,2938.6,14.375]
[1765856109619,1.5186,2938.6,2938.3,4.40783014]
[1765856109820,1.52188684,2938.6,2937.8,0.00510838]
[1765856110015,3.2078,2938.4,2937.8,0.00510838]
[1765856110210,1.52188684,2938.6,2938.2,3.2078]
[1765856110526,1.52188684,2938.6,2938.5,3.2078]
[1765856110910,1.52188684,2938.6,2938.2,3.2078]
[1765856111222,1.52188684,2938.6,2937.9,7.59093381]
[1765856111414,1.52188684,2938.6,2938.5,3.2078]
[1765856111810,1.52188684,2938.6,2938.2,3.2078]
[1765856112015,1.52188684,2938.6,2937.9,3.2078]
[1765856112617,1.5186,2937.9,2936.9,3.37808]
[1765856112808,1.5186,2937.9,2937.2,3.2078]
[1765856113008,3.2078,2938.5,2937.8,3.2078]
[1765856113213,1.5186,2937.9,2937.5,3.2078]
[1765856113414,1.5186,2937.9,2937.4,0.17025]
[1765856113613,1.52370838,2937.9,2937.8,3.2078]
[1765856113816,1.52370838,2937.9,2937.5,4.49781227]
[1765856114023,1.52370838,2937.9,2937.4,3.21290838]
[1765856114921,1.5186,2937.2,2936.7,0.00241474]
[1765856115130,4.7264,2937.2,2936.7,0.00241474]
[1765856115819,3.2078,2936.9,2935.2,3.2078]
[1765856116024,3.2078,2936.1,2935.8,0.00510838]
[1765856116618,3.2078,2936.1,2935.8,1.64960838]
[1765856116820,3.21063584,2936.1,2935.8,0.00804226]
[1765856120226,1.5186,2935.8,2934.2,0.17043]
[1765856120530,3.2078,2934.9,2934.7,2.44]
[1765856120729,3.2078,2934.9,2934.1,3.2078]
[1765856120730,3.2078,2934.9,2934.2,40.8]
[1765856120927,3.2078,2934.9,2934.2,43.37]
[1765856121122,1.5186,2935.8,2934.2,43.37]
[1765856121123,3.2078,2934.6,2934.2,4.43178779]
[1765856121433,3.2078,2934.6,2934.3,0.00510838]
[1765856123526,3.2078,2934.6,2934.4,4.48937843]
[1765856123734,3.2078,2934.6,2934.4,7.04937843]
[1765856125424,3.2078,2934.6,2934.4,2.56]
[1765856125721,3.2078,2934.6,2934.3,0.00510838]
[1765856127533,3.2078,2934.6,2934.5,2.6896]
[1765856127933,5.1406,2934.4,2934.3,0.00510838]
[1765856128333,3.2078,2934.6,2934.3,0.00510838]
[1765856129828,3.2078,2934.6,2934.5,2.6896]
[1765856130034,3.2078,2934.6,2934.5,5.2624]
[1765856130438,0.00510838,2934.8,2934.7,5.2624]
[1765856132235,3.2078,2935.3,2935.2,5.4561]
[1765856132433,3.2078,2935.6,2935.5,5.4561]
[1765856132637,3.19464936,2935.6,2935.5,5.4561]
[1765856132935,3.2078,2935.9,2935.8,6.608]
[1765856133136,3.2078,2935.9,2935.8,8.938]
[1765856133330,3.2078,2935.9,2935.8,13.42374483]
[1765856133530,0.00794422,2936.1,2936.0,5.4561]
[1765856133725,3.2078,2936.7,2936.4,1.6243]
[1765856134036,3.2078,2937.1,2936.6,2.6032328]
[1765856134238,3.2078,2937.1,2936.7,40.8]
[1765856134443,3.2078,2937.1,2936.7,48.10536612]
[1765856134634,3.21184572,2937.1,2936.7,48.10925404]
[1765856135734,3.21184572,2937.1,2936.7,46.77925404]
[1765856135932,3.21184572,2937.1,2937.0,1.6243]
[1765856137638,3.21184572,2937.1,2937.0,7.0804]
[1765856137939,0.91625122,2938.3,2937.3,5.4561]
[1765856138129,3.2078,2938.6,2937.9,8.6639]
[1765856138329,3.2078,2938.6,2938.0,13.224]
[1765856138525,3.2078,2938.6,2938.1,40.8]
[1765856138732,1.7138,2938.8,2938.5,2.7524]
[1765856138939,0.00352634,2938.8,2938.4,0.00510838]
[1765856139436,0.00352634,2938.8,2938.4,2.74510838]
[1765856139638,0.00352634,2938.8,2938.5,4.34949096]
[1765856139840,0.00352634,2938.8,2938.6,16.218]
[1765856140232,0.00352634,2938.8,2938.7,4.41361698]
[1765856140429,0.00352634,2938.8,2938.6,16.218]
[1765856140629,0.00352634,2938.8,2938.7,4.41361698]
[1765856141933,0.00352634,2938.8,2938.5,3.2078]
[1765856141934,0.00352634,2938.8,2938.6,16.211]
[1765856142541,0.00352634,2938.8,2938.7,5.4561]
[1765856144834,3.2078,2939.8,2938.8,1.6208]
[1765856145035,1.7138,2940.0,2939.7,2.7524]
[1765856145340,1.7138,2940.0,2939.5,16.199]
[1765856145341,5.7815,2939.6,2939.5,16.199]
[1765856145731,2.8938,2939.6,2939.5,16.199]
[1765856145931,0.00434411,2939.6,2939.5,18.95474185]
[1765856146137,0.00434411,2939.6,2939.5,21.65844185]
[1765856146543,0.00434411,2939.6,2939.5,24.86624185]
[1765856147345,0.00434411,2939.6,2939.5,22.16254185]
[1765856147637,0.00434411,2939.6,2939.5,18.95474185]
[1765856147842,0.00434411,2939.6,2939.5,24.86624185]
[1765856148046,5.78584411,2939.6,2939.5,16.20234185]
[1765856148240,5.7815,2939.0,2938.3,0.1702]
[1765856148442,3.2078,2938.9,2938.8,2.7524]
[1765856148647,3.2078,2939.2,2938.8,2.7524]
[1765856148946,1.7138,2939.4,2938.9,17.1318]
[1765856149152,0.00434411,2939.6,2939.0,2.29214747]
[1765856149345,0.00434411,2939.6,2939.0,4.82214747]
[1765856149543,0.00434411,2939.6,2939.1,4.38544179]
[1765856149740,2.8938,2939.2,2938.9,14.09677683]
[1765856150343,1.7138,2939.4,2938.9,14.09677683]
[1765856150845,0.00434411,2939.6,2939.5,2.7524]
[1765856151342,0.00434411,2939.6,2939.4,16.186]
[1765856151845,0.00434411,2939.6,2939.5,9.82020407]
[1765856152046,0.00434411,2939.6,2939.5,12.36020407]
[1765856152245,3.2078,2939.8,2939.7,5.4561]
[1765856153044,5.7815,2939.2,2938.4,2.29725585]
[1765856153243,1.7138,2939.4,2938.9,1.92261683]
[1765856153447,0.00245164,2939.2,2939.0,3.2078]
[1765856153649,0.00245164,2939.2,2939.0,5.5578]
[1765856153838,0.00245164,2939.2,2939.0,2.35]
[1765856154043,0.00245164,2939.2,2939.1,2.7524]
[1765856154243,0.00245164,2939.2,2938.9,0.00261683]
[1765856154452,0.00245164,2939.2,2938.9,2.81261683]
[1765856154750,0.00245164,2939.2,2939.0,3.2078]
[1765856154945,0.00245164,2939.2,2939.0,5.7778]
[1765856155346,0.00245164,2939.2,2939.0,3.2078]
[1765856155545,0.00245164,2939.2,2939.0,3.2678]
[1765856155740,0.00245164,2939.2,2939.0,3.2078]
[1765856155944,0.00245164,2939.2,2939.0,5.1178]
[1765856156342,0.00245164,2939.2,2939.0,3.2078]
[1765856156548,0.00245164,2939.2,2939.0,4.8078]
[1765856156854,0.00245164,2939.2,2939.1,16.174]
[1765856157655,2.8938,2938.3,2937.8,3.2078]
[1765856157953,3.2078,2938.3,2938.2,2.7524]
[1765856158352,3.2078,2938.3,2938.2,5.4561]
[1765856158551,0.00245164,2939.2,2938.2,5.4561]
[1765856158552,3.2078,2939.1,2938.5,2.7524]
[1765856158749,3.21290838,2939.1,2938.6,2.29214747]
[1765856159054,3.21290838,2939.1,2938.6,4.69214747]
[1765856159655,3.21290838,2939.1,2938.6,2.4]
[1765856160755,3.2078,2938.8,2938.7,2.7524]
[1765856161262,5.7815,2938.3,2938.2,0.00370769]
[1765856161447,2.8938,2937.3,2937.2,3.2078]
[1765856161652,2.8938,2937.3,2936.4,1.40891]
[1765856161653,2.8938,2937.3,2936.4,1.2386]
[1765856161846,1.7138,2937.0,2936.2,7.4828]
[1765856162056,3.2078,2936.7,2936.2,5.185]
[1765856162453,3.21581629,2936.7,2936.3,40.8]
[1765856162655,3.21581629,2936.7,2936.3,47.62973358]
[1765856165160,3.21581629,2936.7,2936.5,1.7706]
[1765856165355,3.21581629,2936.7,2936.5,4.4206]
[1765856165559,3.21581629,2936.7,2936.6,4.36515279]
[1765856165968,3.21581629,2936.7,2936.3,40.97031]
[1765856166269,3.21581629,2936.7,2936.5,4.37538736]
[1765856166464,3.21581629,2936.7,2936.5,7.18538736]
[1765856166764,3.21581629,2936.7,2936.5,4.5806]
[1765856166964,3.21581629,2936.7,2936.6,4.37538736]
[1765856167165,3.21581629,2936.7,2936.6,0.75]
[1765856167665,3.21581629,2936.7,2936.6,3.7442]
[1765856168059,3.21581629,2936.7,2936.6,5.6942]
[1765856168255,3.21581629,2936.7,2936.6,2.7]
[1765856168256,9.14161629,2936.7,2936.6,2.7]
[1765856168565,5.9258,2936.3,2936.2,0.00750175]
[1765856168765,9.1336,2936.3,2936.2,0.00750175]
[1765856171465,3.0,2935.2,2935.1,3.2078]
[1765856171668,6.2078,2935.2,2934.6,1.7706]
[1765856171865,3.2078,2934.8,2934.7,5.7507]
[1765856172063,1.365,2936.4,2934.7,5.7507]
[1765856172064,3.2078,2935.2,2934.7,12.93639683]
[1765856172562,3.2078,2934.9,2934.7,10.98491344]
[1765856172765,3.2078,2934.9,2934.8,5.7507]
[1765856172964,3.2078,2934.9,2934.8,7.1907]
[1765856173166,3.2078,2934.9,2934.8,4.4342]
[1765856174064,6.2078,2934.9,2934.8,1.44]
[1765856174367,3.2078,2934.9,2934.8,5.7507]
[1765856174965,3.2078,2934.9,2934.8,12.58022759]
[1765856175767,3.2078,2934.9,2934.8,5.7507]
[1765856176068,3.2078,2934.9,2934.8,8.0507]
[1765856176369,1.365,2936.4,2935.2,1.7706]
[1765856176571,3.2078,2935.3,2935.2,26.3953]
[1765856177071,3.2078,2935.3,2935.2,1.7706]
[1765856177366,3.2078,2935.3,2935.2,7.5213]
[1765856177565,3.2078,2935.3,2935.2,14.63009174]
[1765856177778,0.00510838,2935.5,2935.4,5.7507]
[1765856177973,0.00510838,2935.5,2935.4,24.5237]
[1765856178167,0.00510838,2935.5,2935.4,69.72211174]
[1765856178474,6.2078,2935.9,2935.8,1.7706]
[1765856179063,3.2078,2935.9,2935.8,1.7706]
[1765856179261,3.2078,2935.9,2935.8,4.7648]
[1765856179468,3.0,2935.5,2935.4,40.8]
[1765856179675,6.2078,2935.5,2935.2,17.9786]
[1765856179874,3.0,2935.3,2935.2,17.9786]
[1765856180168,3.2078,2935.5,2935.2,17.9786]
[1765856181663,3.2078,2935.5,2935.4,2.9942]
[1765856182274,3.2078,2935.5,2935.2,17.9786]
[1765856183864,3.2078,2935.5,2935.4,2.9942]
[1765856184875,3.2078,2935.5,2935.4,8.6007]
[1765856185067,3.2078,2935.5,2935.4,8.4807]
[1765856185276,3.2078,2935.5,2935.4,5.7507]
[1765856185672,3.2078,2935.5,2935.4,8.3607]
[1765856185877,3.2078,2935.5,2935.4,5.7507]
[1765856187674,3.2078,2935.5,2935.4,8.3807]
[1765856187981,3.2078,2935.5,2935.4,5.7507]
[1765856188175,6.2078,2935.5,2935.2,1.7706]
[1765856188476,3.2078,2935.5,2935.4,5.7507]
[1765856188981,3.2078,2935.5,2935.4,8.5507]
[1765856189277,3.2078,2935.9,2935.5,7.5213]
[1765856190186,3.2078,2935.9,2935.5,4.7648]
[1765856190679,3.2078,2935.6,2935.5,4.7648]
[1765856190880,3.2078,2935.6,2935.5,10.3213]
[1765856191078,3.2078,2935.6,2935.5,7.5213]
[1765856192379,3.2078,2935.6,2935.5,9.9613]
[1765856192796,3.2078,2935.6,2935.5,10.13166]
[1765856193079,3.2078,2935.9,2935.8,6.0951]
[1765856193386,3.2078,2935.9,2935.8,24.9381]
[1765856193982,3.2078,2936.5,2936.4,6.0951]
[1765856194280,3.1897,2936.1,2936.0,1.8443]
[1765856194487,3.1897,2936.1,2935.9,5.607]
[1765856194872,3.2078,2936.5,2936.0,4.9218]
[1765856195077,3.2078,2936.5,2936.0,4.92690838]
[1765856195674,3.2078,2936.5,2936.0,7.74690838]
[1765856195878,3.2078,2936.5,2936.4,3.0775]
[1765856196077,6.3975,2936.5,2936.4,3.0775]
[1765856196278,3.2078,2936.5,2936.4,3.0775]
[1765856196584,3.2078,2936.5,2936.4,6.0951]
[1765856196785,6.3975,2936.5,2936.0,1.84940838]
[1765856196985,6.3975,2936.5,2936.0,4.26940838]
[1765856197187,6.3975,2936.5,2936.1,4.50689354]
[1765856197387,6.3975,2936.5,2936.1,6.93689354]
[1765856197687,6.3975,2936.5,2936.2,16.176]
[1765856197888,3.1897,2936.1,2936.0,0.00510838]
[1765856198089,3.1897,2936.1,2936.0,20.52860838]
[1765856198289,3.2078,2936.5,2936.0,25.39050838]
[1765856199179,3.2078,2936.5,2936.0,26.75050838]
[1765856199889,3.2078,2936.5,2936.4,3.0775]
[1765856200392,6.3975,2936.5,2936.4,3.0775]
[1765856203485,6.3975,2936.5,2936.4,6.0951]
[1765856203884,6.3975,2936.5,2936.4,3.0775]
[1765856204086,6.3975,2936.5,2936.4,6.0951]
[1765856204990,9.407,2936.5,2936.4,3.0775]
[1765856205193,9.407,2936.5,2936.0,18.02540838]
[1765856205390,9.407,2936.5,2936.0,20.31540838]
[1765856206286,3.2078,2936.5,2936.4,6.0951]
[1765856207685,3.2078,2936.5,2936.4,8.5751]